[Event "Late-Titled-Tuesday-Blitz-October-10-2023"]
[Site "Chess.com"]
[Date "2023.10.10"]
[Round "2"]
[White "ThaBarWa"]
[Black "FaustinoOro"]
[Result "1/2-1/2"]
[WhiteElo "2417"]
[BlackElo "2878"]
[TimeControl "180+1"]
[EndTime "14:17:45 PDT"]
[Termination "Game drawn by repetition"]

1. d4 {[%clk 0:03:00.9]} 1... Nf6 {[%clk 0:02:59.8]} 2. c4 {[%clk 0:03:00.5]}
2... e6 {[%clk 0:03:00.2]} 3. Nc3 {[%clk 0:03:00.1]} 3... Bb4 {[%clk 0:03:00.2]}
4. g3 {[%clk 0:03:00.3]} 4... O-O {[%clk 0:02:59.5]} 5. Bg2 {[%clk 0:02:59.6]}
5... c5 {[%clk 0:02:58.8]} 6. Nf3 {[%clk 0:02:59.9]} 6... Nc6 {[%clk 0:02:58.2]}
7. O-O {[%clk 0:02:59.7]} 7... d5 {[%clk 0:02:53]} 8. a3 {[%clk 0:02:39]} 8...
Bxc3 {[%clk 0:02:48.4]} 9. bxc3 {[%clk 0:02:39.9]} 9... dxc4 {[%clk 0:02:49]}
10. dxc5 {[%clk 0:02:30.6]} 10... Qa5 {[%clk 0:02:45.8]} 11. a4 {[%clk 0:02:20]}
11... Rd8 {[%clk 0:02:30.4]} 12. Qc2 {[%clk 0:02:18.9]} 12... Qxc5 {[%clk
0:02:29.3]} 13. Ba3 {[%clk 0:02:16.9]} 13... Qh5 {[%clk 0:02:28.8]} 14. Rad1
{[%clk 0:02:12.2]} 14... Bd7 {[%clk 0:02:21.2]} 15. Bd6 {[%clk 0:01:52.7]} 15...
Be8 {[%clk 0:02:07.9]} 16. Qb2 {[%clk 0:01:48.2]} 16... Ne4 {[%clk 0:01:54.2]}
17. Qxb7 {[%clk 0:01:36.1]} 17... Nxc3 {[%clk 0:01:52.4]} 18. Rd2 {[%clk
0:01:00.7]} 18... Na5 {[%clk 0:01:35.8]} 19. Qe7 {[%clk 0:00:57.3]} 19... Bxa4
{[%clk 0:01:15.2]} 20. Ne5 {[%clk 0:00:46.5]} 20... Nd5 {[%clk 0:01:04.8]} 21.
Rxd5 {[%clk 0:00:35.4]} 21... exd5 {[%clk 0:00:43.7]} 22. Bxd5 {[%clk
0:00:36.3]} 22... Rd7 {[%clk 0:00:25.1]} 23. Nxd7 {[%clk 0:00:24.8]} 23... Qxd5
{[%clk 0:00:24.9]} 24. Nb8 {[%clk 0:00:15.6]} 24... h6 {[%clk 0:00:20.3]} 25.
Nd7 {[%clk 0:00:07.3]} 25... Bc6 {[%clk 0:00:19]} 26. f3 {[%clk 0:00:07.1]}
26... c3 {[%clk 0:00:13.3]} 27. Ne5 {[%clk 0:00:06.2]} 27... Re8 {[%clk
0:00:11.7]} 28. Qc7 {[%clk 0:00:05.5]} 28... c2 {[%clk 0:00:10.6]} 29. Nxf7
{[%clk 0:00:05]} 29... Qxf7 {[%clk 0:00:10.4]} 30. Qxa5 {[%clk 0:00:05.7]} 30...
Rxe2 {[%clk 0:00:09.5]} 31. Qc5 {[%clk 0:00:05.1]} 31... Bxf3 {[%clk 0:00:09.1]}
32. Qc8+ {[%clk 0:00:04.6]} 32... Kh7 {[%clk 0:00:09.7]} 33. Qc3 {[%clk
0:00:02.5]} 33... Rg2+ {[%clk 0:00:09.9]} 34. Kh1 {[%clk 0:00:02.4]} 34... Rxh2+
{[%clk 0:00:10.6]} 35. Kxh2 {[%clk 0:00:02.7]} 35... Qh5+ {[%clk 0:00:11.3]} 36.
Kg1 {[%clk 0:00:02.8]} 36... Qh1+ {[%clk 0:00:12.2]} 37. Kf2 {[%clk 0:00:03.6]}
37... Qg2+ {[%clk 0:00:11.7]} 38. Ke3 {[%clk 0:00:04.5]} 38... Qxf1 {[%clk
0:00:11.2]} 39. Qxc2+ {[%clk 0:00:03.1]} 39... Kg8 {[%clk 0:00:10.6]} 40. Qc8+
{[%clk 0:00:03.7]} 40... Kh7 {[%clk 0:00:10.3]} 41. Qf5+ {[%clk 0:00:04.3]}
41... Kg8 {[%clk 0:00:11]} 42. Qc8+ {[%clk 0:00:04]} 42... Kf7 {[%clk 0:00:11]}
43. Qf5+ {[%clk 0:00:04.3]} 43... Kg8 {[%clk 0:00:11.6]} 44. Qc8+ {[%clk
0:00:03.7]} 1/2-1/2

[Event "Late-Titled-Tuesday-Blitz-October-10-2023"]
[Site "Chess.com"]
[Date "2023.10.10"]
[Round "2"]
[White "mbojan"]
[Black "2346PL"]
[Result "1-0"]
[WhiteElo "2770"]
[BlackElo "2531"]
[TimeControl "180+1"]
[EndTime "14:17:49 PDT"]
[Termination "mbojan won by checkmate"]

1. Nf3 {[%clk 0:02:59.7]} 1... d6 {[%clk 0:02:59.4]} 2. e4 {[%clk 0:02:56.8]}
2... Nf6 {[%clk 0:02:59.1]} 3. c3 {[%clk 0:02:46]} 3... c6 {[%clk 0:02:56.3]} 4.
d3 {[%clk 0:02:43.6]} 4... e5 {[%clk 0:02:55.8]} 5. Be2 {[%clk 0:02:42.3]} 5...
g6 {[%clk 0:02:55.8]} 6. O-O {[%clk 0:02:42.3]} 6... Bg7 {[%clk 0:02:56.2]} 7.
Qc2 {[%clk 0:02:42.8]} 7... O-O {[%clk 0:02:56.1]} 8. Nbd2 {[%clk 0:02:43.4]}
8... Nh5 {[%clk 0:02:51.6]} 9. Re1 {[%clk 0:02:42.2]} 9... f5 {[%clk 0:02:50]}
10. b4 {[%clk 0:02:39.9]} 10... a6 {[%clk 0:02:37.6]} 11. a4 {[%clk 0:02:37.6]}
11... f4 {[%clk 0:02:36.3]} 12. d4 {[%clk 0:02:29.4]} 12... Kh8 {[%clk 0:02:31]}
13. dxe5 {[%clk 0:02:28.2]} 13... dxe5 {[%clk 0:02:30.9]} 14. Nc4 {[%clk
0:02:23.7]} 14... Nd7 {[%clk 0:02:19.4]} 15. Nd6 {[%clk 0:02:12.6]} 15... Qe7
{[%clk 0:02:15.7]} 16. Rd1 {[%clk 0:02:10.1]} 16... g5 {[%clk 0:02:09.9]} 17. h3
{[%clk 0:02:05.3]} 17... h6 {[%clk 0:02:03.6]} 18. c4 {[%clk 0:01:53.4]} 18...
Nhf6 {[%clk 0:02:00]} 19. c5 {[%clk 0:01:51.7]} 19... Ne8 {[%clk 0:01:49.2]} 20.
Nf5 {[%clk 0:01:41.7]} 20... Rxf5 {[%clk 0:01:48.8]} 21. exf5 {[%clk 0:01:38.5]}
21... e4 {[%clk 0:01:49.3]} 22. Nd4 {[%clk 0:01:31.7]} 22... Ndf6 {[%clk
0:01:45.5]} 23. Bb2 {[%clk 0:01:29.2]} 23... Nd5 {[%clk 0:01:44.5]} 24. b5
{[%clk 0:01:29.1]} 24... Bd7 {[%clk 0:01:28.5]} 25. bxc6 {[%clk 0:01:27.2]}
25... bxc6 {[%clk 0:01:28.5]} 26. Rab1 {[%clk 0:01:03.8]} 26... Nec7 {[%clk
0:01:14.7]} 27. Ba1 {[%clk 0:00:59.4]} 27... Rf8 {[%clk 0:00:50.2]} 28. Rb7
{[%clk 0:00:57.1]} 28... f3 {[%clk 0:00:46.7]} 29. gxf3 {[%clk 0:00:52]} 29...
exf3 {[%clk 0:00:46.3]} 30. Bxf3 {[%clk 0:00:50.1]} 30... Nf4 {[%clk 0:00:41.9]}
31. Rxc7 {[%clk 0:00:44.2]} 31... Nxh3+ {[%clk 0:00:38.9]} 32. Kf1 {[%clk
0:00:43.3]} 32... g4 {[%clk 0:00:30.1]} 33. Bxg4 {[%clk 0:00:36.3]} 33... Nf4
{[%clk 0:00:30.2]} 34. Ne6 {[%clk 0:00:30.9]} 34... Qh4 {[%clk 0:00:26.6]} 35.
Bxg7+ {[%clk 0:00:30.1]} 35... Kg8 {[%clk 0:00:27.1]} 36. Qe4 {[%clk 0:00:10.6]}
36... Qxg4 {[%clk 0:00:22.6]} 37. Rdxd7 {[%clk 0:00:10.7]} 37... Rb8 {[%clk
0:00:18]} 38. Bb2 {[%clk 0:00:08.6]} 38... Qh3+ {[%clk 0:00:15.8]} 39. Ke1
{[%clk 0:00:08.9]} 39... Ng2+ {[%clk 0:00:13.1]} 40. Qxg2+ {[%clk 0:00:09.1]}
40... Qxg2 {[%clk 0:00:12.1]} 41. Rg7+ {[%clk 0:00:09.8]} 41... Qxg7 {[%clk
0:00:11.7]} 42. Rxg7+ {[%clk 0:00:10.7]} 42... Kh8 {[%clk 0:00:11.8]} 43. Be5
{[%clk 0:00:11.1]} 43... Rb1+ {[%clk 0:00:04.5]} 44. Ke2 {[%clk 0:00:11.2]}
44... Rc1 {[%clk 0:00:02.8]} 45. Rg6+ {[%clk 0:00:09.6]} 45... Kh7 {[%clk
0:00:02.9]} 46. Nf8# {[%clk 0:00:10.5]} 1-0

[Event "Late-Titled-Tuesday-Blitz-October-10-2023"]
[Site "Chess.com"]
[Date "2023.10.10"]
[Round "2"]
[White "THE_PLAYER6"]
[Black "baki83"]
[Result "1-0"]
[WhiteElo "2584"]
[BlackElo "2813"]
[TimeControl "180+1"]
[EndTime "14:17:52 PDT"]
[Termination "THE_PLAYER6 won on time"]

1. d4 {[%clk 0:03:00.9]} 1... Nf6 {[%clk 0:02:59.3]} 2. c4 {[%clk 0:03:01.1]}
2... g6 {[%clk 0:02:59.9]} 3. Nc3 {[%clk 0:03:01]} 3... d5 {[%clk 0:03:00.2]} 4.
cxd5 {[%clk 0:03:00.7]} 4... Nxd5 {[%clk 0:03:01.1]} 5. e4 {[%clk 0:03:00.9]}
5... Nxc3 {[%clk 0:03:01.5]} 6. bxc3 {[%clk 0:03:01.6]} 6... c5 {[%clk
0:03:01.9]} 7. Nf3 {[%clk 0:02:59.6]} 7... Bg7 {[%clk 0:03:02]} 8. Bb5+ {[%clk
0:02:59.3]} 8... Bd7 {[%clk 0:03:02.3]} 9. Be2 {[%clk 0:02:58.6]} 9... cxd4
{[%clk 0:03:01.9]} 10. cxd4 {[%clk 0:02:58.5]} 10... O-O {[%clk 0:03:02.2]} 11.
O-O {[%clk 0:02:56.3]} 11... Nc6 {[%clk 0:03:02.1]} 12. Rb1 {[%clk 0:02:55.5]}
12... b6 {[%clk 0:02:53.9]} 13. d5 {[%clk 0:02:55.2]} 13... Na5 {[%clk
0:02:53.5]} 14. Bd2 {[%clk 0:02:50.9]} 14... Nb7 {[%clk 0:02:52.6]} 15. Be3
{[%clk 0:02:45.2]} 15... Bg4 {[%clk 0:02:47.1]} 16. h3 {[%clk 0:02:44.6]} 16...
Bxf3 {[%clk 0:02:47.2]} 17. Bxf3 {[%clk 0:02:45.5]} 17... Nd6 {[%clk 0:02:47.2]}
18. Bf4 {[%clk 0:02:44.6]} 18... Nc4 {[%clk 0:02:41.7]} 19. Be2 {[%clk
0:02:34.4]} 19... Rc8 {[%clk 0:02:38.6]} 20. Bg3 {[%clk 0:02:31.8]} 20... Qd7
{[%clk 0:02:29.5]} 21. Qd3 {[%clk 0:02:11.5]} 21... Nb2 {[%clk 0:02:13.8]} 22.
Qb3 {[%clk 0:02:04.7]} 22... Rc3 {[%clk 0:02:12.2]} 23. Qb4 {[%clk 0:01:39.4]}
23... Nd3 {[%clk 0:01:34]} 24. Bxd3 {[%clk 0:01:10.6]} 24... Rxd3 {[%clk
0:01:34.3]} 25. Rfc1 {[%clk 0:01:11.2]} 25... e5 {[%clk 0:01:09.6]} 26. Rc4
{[%clk 0:00:52.4]} 26... f5 {[%clk 0:00:48]} 27. Rbc1 {[%clk 0:00:46.5]} 27...
fxe4 {[%clk 0:00:32.2]} 28. Rc7 {[%clk 0:00:35.9]} 28... Qd8 {[%clk 0:00:31.1]}
29. Rxa7 {[%clk 0:00:21.2]} 29... e3 {[%clk 0:00:13]} 30. Rcc7 {[%clk 0:00:17]}
30... Bh6 {[%clk 0:00:13.4]} 31. fxe3 {[%clk 0:00:08.4]} 31... Qxd5 {[%clk
0:00:10.7]} 32. Qe7 {[%clk 0:00:05.2]} 32... Qf7 {[%clk 0:00:02.1]} 33. Qxf7+
{[%clk 0:00:04.7]} 33... Rxf7 {[%clk 0:00:02.3]} 34. Rxf7 {[%clk 0:00:05.6]}
34... Bxe3+ {[%clk 0:00:02.4]} 35. Bf2 {[%clk 0:00:05.1]} 35... Rd1+ {[%clk
0:00:02.4]} 36. Kh2 {[%clk 0:00:05.4]} 36... Bf4+ {[%clk 0:00:03]} 37. Bg3
{[%clk 0:00:05.4]} 37... Be3 {[%clk 0:00:03.1]} 38. Rg7+ {[%clk 0:00:05.1]}
38... Kf8 {[%clk 0:00:03.3]} 39. h4 {[%clk 0:00:04.3]} 39... Bg1+ {[%clk
0:00:02.7]} 40. Kh3 {[%clk 0:00:04.8]} 40... b5 {[%clk 0:00:02.9]} 41. Raf7+
{[%clk 0:00:04.6]} 41... Ke8 {[%clk 0:00:03.5]} 42. Re7+ {[%clk 0:00:05]} 42...
Kf8 {[%clk 0:00:03.6]} 43. Bxe5 {[%clk 0:00:05.4]} 43... Bc5 {[%clk 0:00:03.2]}
44. Rc7 {[%clk 0:00:05.2]} 44... h5 {[%clk 0:00:02]} 45. Rc8+ {[%clk 0:00:05.2]}
1-0

[Event "Late-Titled-Tuesday-Blitz-October-10-2023"]
[Site "Chess.com"]
[Date "2023.10.10"]
[Round "2"]
[White "ozates"]
[Black "NigelDwarf"]
[Result "0-1"]
[WhiteElo "2765"]
[BlackElo "2548"]
[TimeControl "180+1"]
[EndTime "14:17:53 PDT"]
[Termination "NigelDwarf won by checkmate"]

1. e4 {[%clk 0:03:00.9]} 1... c5 {[%clk 0:02:59.4]} 2. Nc3 {[%clk 0:02:57.9]}
2... a6 {[%clk 0:02:58.6]} 3. g3 {[%clk 0:02:56.7]} 3... b5 {[%clk 0:02:58.7]}
4. Bg2 {[%clk 0:02:57.4]} 4... Bb7 {[%clk 0:02:58.7]} 5. Nge2 {[%clk 0:02:57.9]}
5... e6 {[%clk 0:02:58.3]} 6. d4 {[%clk 0:02:58]} 6... cxd4 {[%clk 0:02:55.5]}
7. Nxd4 {[%clk 0:02:58.9]} 7... Nf6 {[%clk 0:02:54.8]} 8. O-O {[%clk 0:02:56.6]}
8... b4 {[%clk 0:02:54.7]} 9. Na4 {[%clk 0:02:56.9]} 9... Bxe4 {[%clk
0:02:55.2]} 10. Bxe4 {[%clk 0:02:53.3]} 10... Nxe4 {[%clk 0:02:56.1]} 11. Re1
{[%clk 0:02:53.6]} 11... Nc5 {[%clk 0:02:52.4]} 12. c4 {[%clk 0:02:53.4]} 12...
bxc3 {[%clk 0:02:45.3]} 13. Nxc3 {[%clk 0:02:42.8]} 13... Be7 {[%clk 0:02:32.3]}
14. b4 {[%clk 0:01:59.4]} 14... Nb7 {[%clk 0:02:27]} 15. Nd5 {[%clk 0:01:43.8]}
15... O-O {[%clk 0:02:15.6]} 16. Nxe7+ {[%clk 0:01:16.5]} 16... Qxe7 {[%clk
0:02:16.5]} 17. Bb2 {[%clk 0:01:10.6]} 17... Nd6 {[%clk 0:01:45.1]} 18. Rc1
{[%clk 0:01:05.8]} 18... Ra7 {[%clk 0:01:03.1]} 19. Qg4 {[%clk 0:00:57.4]} 19...
f5 {[%clk 0:01:01]} 20. Qf4 {[%clk 0:00:50.9]} 20... Rb7 {[%clk 0:00:48.7]} 21.
a3 {[%clk 0:00:30.9]} 21... Ne4 {[%clk 0:00:26]} 22. Nb3 {[%clk 0:00:19.5]}
22... Nc6 {[%clk 0:00:22.1]} 23. f3 {[%clk 0:00:19.3]} 23... Ng5 {[%clk
0:00:18.9]} 24. Kg2 {[%clk 0:00:12.8]} 24... Nf7 {[%clk 0:00:12.9]} 25. Nc5
{[%clk 0:00:12.7]} 25... Rb5 {[%clk 0:00:12.2]} 26. Rcd1 {[%clk 0:00:12.5]}
26... Rd8 {[%clk 0:00:08.4]} 27. Qc7 {[%clk 0:00:09.2]} 27... Rxc5 {[%clk
0:00:03.3]} 28. bxc5 {[%clk 0:00:08.2]} 28... Rb8 {[%clk 0:00:03.6]} 29. Bc3
{[%clk 0:00:06.6]} 29... Qxc5 {[%clk 0:00:02.5]} 30. Rd3 {[%clk 0:00:04.8]}
30... Qc4 {[%clk 0:00:01.5]} 31. Qxd7 {[%clk 0:00:04.9]} 31... Rd8 {[%clk
0:00:01.4]} 32. Qxd8+ {[%clk 0:00:03.2]} 32... Nfxd8 {[%clk 0:00:02.3]} 33. Red1
{[%clk 0:00:03.8]} 33... Kf7 {[%clk 0:00:01.9]} 34. Rd7+ {[%clk 0:00:03.7]}
34... Ke8 {[%clk 0:00:02.3]} 35. Bb2 {[%clk 0:00:02.6]} 35... Qc2+ {[%clk
0:00:02.5]} 36. R1d2 {[%clk 0:00:03.2]} 36... Qb3 {[%clk 0:00:02.9]} 37. Rxg7
{[%clk 0:00:03.1]} 37... Nf7 {[%clk 0:00:03.4]} 38. Rg8+ {[%clk 0:00:03.3]}
38... Ke7 {[%clk 0:00:03.8]} 39. Ba1 {[%clk 0:00:02.3]} 39... Nce5 {[%clk
0:00:03.9]} 40. Bxe5 {[%clk 0:00:02]} 40... Nxe5 {[%clk 0:00:04.4]} 41. Rgd8
{[%clk 0:00:02.1]} 41... Qxf3+ {[%clk 0:00:04.5]} 42. Kg1 {[%clk 0:00:02.7]}
42... Ng4 {[%clk 0:00:04.5]} 43. R8d7+ {[%clk 0:00:02.7]} 43... Kf6 {[%clk
0:00:04.9]} 44. Rxh7 {[%clk 0:00:02.8]} 44... Qe3+ {[%clk 0:00:04.9]} 45. Kg2
{[%clk 0:00:03.4]} 45... Qxd2+ {[%clk 0:00:05.4]} 46. Kf3 {[%clk 0:00:04.1]}
46... Qf2# {[%clk 0:00:05.7]} 0-1

[Event "Late-Titled-Tuesday-Blitz-October-10-2023"]
[Site "Chess.com"]
[Date "2023.10.10"]
[Round "2"]
[White "mac0504"]
[Black "Jarming"]
[Result "1-0"]
[WhiteElo "2553"]
[BlackElo "2762"]
[TimeControl "180+1"]
[EndTime "14:17:53 PDT"]
[Termination "mac0504 won by checkmate"]

1. d4 {[%clk 0:02:55.9]} 1... Nf6 {[%clk 0:02:59.3]} 2. Nf3 {[%clk 0:02:56.5]}
2... g6 {[%clk 0:02:59.7]} 3. Bf4 {[%clk 0:02:57.1]} 3... Bg7 {[%clk 0:02:59.9]}
4. Qd2 {[%clk 0:02:57.9]} 4... d6 {[%clk 0:02:55.3]} 5. Bh6 {[%clk 0:02:57.9]}
5... Ne4 {[%clk 0:02:53.2]} 6. Qe3 {[%clk 0:02:56.5]} 6... Bxh6 {[%clk
0:02:53.3]} 7. Qxh6 {[%clk 0:02:57.4]} 7... e6 {[%clk 0:02:49.2]} 8. Nbd2 {[%clk
0:02:49.5]} 8... Nxd2 {[%clk 0:02:48.6]} 9. Nxd2 {[%clk 0:02:49]} 9... Nd7
{[%clk 0:02:46.5]} 10. O-O-O {[%clk 0:02:43]} 10... d5 {[%clk 0:02:46.1]} 11. h4
{[%clk 0:02:42.9]} 11... Qf6 {[%clk 0:02:44.5]} 12. Nf3 {[%clk 0:02:36]} 12...
c5 {[%clk 0:02:43]} 13. e3 {[%clk 0:02:32.6]} 13... a6 {[%clk 0:02:39.1]} 14. h5
{[%clk 0:02:32.7]} 14... gxh5 {[%clk 0:02:20.7]} 15. Rxh5 {[%clk 0:02:29.4]}
15... Qxh6 {[%clk 0:02:19.3]} 16. Rxh6 {[%clk 0:02:30.3]} 16... Kf8 {[%clk
0:02:18.7]} 17. Bd3 {[%clk 0:02:28.3]} 17... Kg7 {[%clk 0:02:19]} 18. Rdh1
{[%clk 0:02:29]} 18... Nf8 {[%clk 0:02:14]} 19. c3 {[%clk 0:02:04.4]} 19... c4
{[%clk 0:02:11.3]} 20. Bc2 {[%clk 0:02:04.1]} 20... f6 {[%clk 0:02:07.2]} 21.
R6h3 {[%clk 0:01:28.5]} 21... Bd7 {[%clk 0:02:07.1]} 22. Rg3+ {[%clk 0:01:28.9]}
22... Ng6 {[%clk 0:02:02.8]} 23. Nh4 {[%clk 0:01:20.3]} 23... Be8 {[%clk
0:02:00.4]} 24. f4 {[%clk 0:01:19.2]} 24... f5 {[%clk 0:01:53.5]} 25. Nf3 {[%clk
0:01:15.8]} 25... Bf7 {[%clk 0:01:53.3]} 26. Ne5 {[%clk 0:01:15.1]} 26... Kf6
{[%clk 0:01:43.5]} 27. Rgh3 {[%clk 0:01:09.7]} 27... Nxe5 {[%clk 0:01:38.3]} 28.
fxe5+ {[%clk 0:00:42.4]} 28... Kg7 {[%clk 0:01:38.6]} 29. g4 {[%clk 0:00:41.6]}
29... Bg6 {[%clk 0:01:34.6]} 30. gxf5 {[%clk 0:00:42]} 30... exf5 {[%clk
0:01:33.5]} 31. Kd2 {[%clk 0:00:37.6]} 31... Raf8 {[%clk 0:01:29.6]} 32. Rh4
{[%clk 0:00:36.5]} 32... b5 {[%clk 0:01:29.2]} 33. Bd1 {[%clk 0:00:36.4]} 33...
Re8 {[%clk 0:01:25.3]} 34. Bf3 {[%clk 0:00:36.2]} 34... Rd8 {[%clk 0:01:24.1]}
35. a4 {[%clk 0:00:32.8]} 35... bxa4 {[%clk 0:01:23.1]} 36. Ra1 {[%clk
0:00:32.4]} 36... Rb8 {[%clk 0:01:23.7]} 37. Kc1 {[%clk 0:00:27.2]} 37... Rb6
{[%clk 0:01:22.7]} 38. Bxd5 {[%clk 0:00:25.7]} 38... Rhb8 {[%clk 0:01:23.6]} 39.
Rh2 {[%clk 0:00:25.4]} 39... Rf8 {[%clk 0:01:09.9]} 40. Rxa4 {[%clk 0:00:23.5]}
40... f4 {[%clk 0:01:09]} 41. exf4 {[%clk 0:00:18.6]} 41... Rxf4 {[%clk
0:01:09.9]} 42. Bxc4 {[%clk 0:00:19.1]} 42... Rg4 {[%clk 0:01:04.5]} 43. Rb4
{[%clk 0:00:03.1]} 43... Rxb4 {[%clk 0:01:01.2]} 44. cxb4 {[%clk 0:00:04]} 44...
Rxd4 {[%clk 0:01:01.3]} 45. Bxa6 {[%clk 0:00:04.4]} 45... Rxb4 {[%clk
0:01:00.6]} 46. Be2 {[%clk 0:00:02.2]} 46... Re4 {[%clk 0:00:59]} 47. Bd1 {[%clk
0:00:01.7]} 47... Rxe5 {[%clk 0:00:59.3]} 48. Kd2 {[%clk 0:00:01.9]} 48... h5
{[%clk 0:00:59]} 49. b4 {[%clk 0:00:01.5]} 49... Kh6 {[%clk 0:00:55.1]} 50. Kc3
{[%clk 0:00:01.6]} 50... Kg5 {[%clk 0:00:54.9]} 51. Bb3 {[%clk 0:00:01.9]} 51...
h4 {[%clk 0:00:54.7]} 52. Bc4 {[%clk 0:00:02.2]} 52... Be4 {[%clk 0:00:54.9]}
53. b5 {[%clk 0:00:02.5]} 53... Kg4 {[%clk 0:00:53.6]} 54. Kd4 {[%clk
0:00:02.9]} 54... Re7 {[%clk 0:00:52.9]} 55. Re2 {[%clk 0:00:03.2]} 55... Kf3
{[%clk 0:00:51.8]} 56. Re3+ {[%clk 0:00:02.9]} 56... Kf4 {[%clk 0:00:52.3]} 57.
Bd5 {[%clk 0:00:02.8]} 57... Bxd5 {[%clk 0:00:45.8]} 58. Rxe7 {[%clk 0:00:02.8]}
58... Bg2 {[%clk 0:00:46.1]} 59. b6 {[%clk 0:00:03.2]} 59... h3 {[%clk
0:00:46.4]} 60. Rh7 {[%clk 0:00:03.8]} 60... Kg3 {[%clk 0:00:46.1]} 61. Rg7+
{[%clk 0:00:03.9]} 61... Kf2 {[%clk 0:00:46]} 62. Rh7 {[%clk 0:00:04.3]} 62...
Kg1 {[%clk 0:00:45.9]} 63. b7 {[%clk 0:00:03.3]} 63... h2 {[%clk 0:00:45.8]} 64.
b8=Q {[%clk 0:00:03.1]} 64... h1=Q {[%clk 0:00:45.2]} 65. Rxh1+ {[%clk
0:00:03.2]} 65... Kxh1 {[%clk 0:00:46.1]} 66. Qg3 {[%clk 0:00:03.2]} 66... Kg1
{[%clk 0:00:47]} 67. Ke3 {[%clk 0:00:03.4]} 67... Kf1 {[%clk 0:00:47.9]} 68.
Qf2# {[%clk 0:00:03.6]} 1-0

[Event "Late-Titled-Tuesday-Blitz-October-10-2023"]
[Site "Chess.com"]
[Date "2023.10.10"]
[Round "2"]
[White "AlexandraBotez"]
[Black "ErikRonka"]
[Result "1-0"]
[WhiteElo "2289"]
[BlackElo "2497"]
[TimeControl "180+1"]
[EndTime "14:17:54 PDT"]
[Termination "AlexandraBotez won on time"]

1. d4 {[%clk 0:03:00.9]} 1... d5 {[%clk 0:02:57.2]} 2. Nf3 {[%clk 0:02:59.2]}
2... Nf6 {[%clk 0:02:54.9]} 3. Bf4 {[%clk 0:02:55.9]} 3... c5 {[%clk 0:02:54.3]}
4. e3 {[%clk 0:02:53.1]} 4... Nc6 {[%clk 0:02:54.8]} 5. c3 {[%clk 0:02:52.3]}
5... Qb6 {[%clk 0:02:54.3]} 6. Qc1 {[%clk 0:02:49.3]} 6... Bf5 {[%clk
0:02:50.1]} 7. Nbd2 {[%clk 0:02:41.3]} 7... e6 {[%clk 0:02:50.2]} 8. Be2 {[%clk
0:02:40.6]} 8... h6 {[%clk 0:02:50.3]} 9. O-O {[%clk 0:02:40.7]} 9... Be7 {[%clk
0:02:50.1]} 10. h3 {[%clk 0:02:39.4]} 10... O-O {[%clk 0:02:50]} 11. Ne5 {[%clk
0:02:38.9]} 11... Rac8 {[%clk 0:02:49.5]} 12. dxc5 {[%clk 0:02:32.7]} 12... Bxc5
{[%clk 0:02:44.6]} 13. Nb3 {[%clk 0:02:31.2]} 13... Be7 {[%clk 0:02:42.8]} 14.
Bd3 {[%clk 0:02:05.8]} 14... Bxd3 {[%clk 0:02:20.3]} 15. Nxd3 {[%clk 0:02:04.9]}
15... Rfe8 {[%clk 0:02:21.1]} 16. Ne5 {[%clk 0:01:51.5]} 16... a5 {[%clk
0:02:00.4]} 17. Qd2 {[%clk 0:01:44.8]} 17... Ne4 {[%clk 0:01:56.6]} 18. Qe2
{[%clk 0:01:45.2]} 18... a4 {[%clk 0:01:55.7]} 19. Nd4 {[%clk 0:01:45.4]} 19...
Nxe5 {[%clk 0:01:51.4]} 20. Bxe5 {[%clk 0:01:44]} 20... f6 {[%clk 0:01:45.8]}
21. Bh2 {[%clk 0:01:43.8]} 21... a3 {[%clk 0:01:46.1]} 22. Rab1 {[%clk 0:01:31]}
22... Bf8 {[%clk 0:01:21.2]} 23. f3 {[%clk 0:01:27.5]} 23... Nd6 {[%clk
0:01:15.3]} 24. bxa3 {[%clk 0:01:25.9]} 24... Qa7 {[%clk 0:00:56.9]} 25. Bxd6
{[%clk 0:01:23.4]} 25... Bxd6 {[%clk 0:00:57.8]} 26. Nb5 {[%clk 0:01:23.3]}
26... Qa6 {[%clk 0:00:54.8]} 27. Rb3 {[%clk 0:01:18]} 27... Be5 {[%clk
0:00:49.6]} 28. Qb2 {[%clk 0:01:06.7]} 28... Bb8 {[%clk 0:00:38.3]} 29. Rc1
{[%clk 0:01:05.8]} 29... Rc4 {[%clk 0:00:33.1]} 30. Nd4 {[%clk 0:01:03.3]} 30...
Qd6 {[%clk 0:00:32.9]} 31. f4 {[%clk 0:01:00.1]} 31... e5 {[%clk 0:00:32.4]} 32.
Nf5 {[%clk 0:00:52.4]} 32... Qe6 {[%clk 0:00:28.5]} 33. Rxb7 {[%clk 0:00:50.7]}
33... Bc7 {[%clk 0:00:28.7]} 34. Qb1 {[%clk 0:00:33.6]} 34... Re4 {[%clk
0:00:19.9]} 35. Nxh6+ {[%clk 0:00:24.6]} 35... gxh6 {[%clk 0:00:20]} 36. Rxc7
{[%clk 0:00:24.5]} 36... exf4 {[%clk 0:00:18.4]} 37. exf4 {[%clk 0:00:20.1]}
37... Qf5 {[%clk 0:00:15.6]} 38. Rf1 {[%clk 0:00:17.9]} 38... Kh8 {[%clk
0:00:07.2]} 39. Qb7 {[%clk 0:00:16.6]} 39... Rg8 {[%clk 0:00:07.1]} 40. Rd7
{[%clk 0:00:09.8]} 40... Re2 {[%clk 0:00:06.3]} 41. Rf2 {[%clk 0:00:08.7]} 41...
Re1+ {[%clk 0:00:06.2]} 42. Kh2 {[%clk 0:00:09]} 42... Rd1 {[%clk 0:00:06.6]}
43. Rf7 {[%clk 0:00:07.4]} 43... Qg6 {[%clk 0:00:04.9]} 44. g4 {[%clk
0:00:06.2]} 44... h5 {[%clk 0:00:02.7]} 45. Qe7 {[%clk 0:00:06]} 45... hxg4
{[%clk 0:00:02.1]} 46. hxg4 {[%clk 0:00:05]} 46... Qh6+ {[%clk 0:00:01.7]} 47.
Kg3 {[%clk 0:00:04.7]} 1-0